bitfinex-derivatives/quotes_BTCF0:USTF0_20251219
["timestamp","ask_amount","ask_price","bid_price","bid_amount"]
[1766168089874,0.00576,87215.0,87203.0,0.0114737]
[1766168090367,0.00576,87215.0,87199.0,0.00017206]
[1766168090368,0.0172323,87215.0,87199.0,0.00017206]
[1766168090875,0.00576,87215.0,87201.0,0.011474]
[1766168091065,0.00576,87215.0,87199.0,0.00017206]
[1766168091375,0.00576,87215.0,87202.0,0.0114738]
[1766168092373,0.00576,87215.0,87200.0,0.0114741]
[1766168092666,0.00576,87215.0,87202.0,0.0114739]
[1766168092872,0.00576,87215.0,87201.0,0.011474]
[1766168094472,0.00576,87215.0,87203.0,0.0114737]
[1766168094670,0.0114692,87238.0,87200.0,0.23033534]
[1766168094863,0.02534902,87235.0,87222.0,0.0114712]
[1766168095064,0.03110902,87234.0,87223.0,0.011471]
[1766168095265,0.02534902,87233.0,87220.0,0.00017195]
[1766168095566,0.0114673,87252.0,87222.0,0.0114712]
[1766168095770,0.23033534,87260.0,87220.0,0.24197869]
[1766168095771,0.00576,87251.0,87220.0,0.24197869]
[1766168095970,0.0114671,87254.0,87220.0,0.01164335]
[1766168096176,0.0114671,87254.0,87236.0,0.0114694]
[1766168096362,0.0114674,87252.0,87233.0,0.0114698]
[1766168096678,0.0172275,87251.0,87233.0,0.0114697]
[1766168096969,0.0114675,87251.0,87233.0,0.0114697]
[1766168097170,0.00576,87250.0,87233.0,0.0114697]
[1766168097372,0.0172276,87250.0,87233.0,0.0114697]
[1766168098470,0.0172276,87250.0,87230.0,0.0114701]
[1766168099473,0.0114679,87248.0,87230.0,0.0114701]
[1766168099877,0.00576,87250.0,87232.0,0.0114699]
[1766168100374,0.01137834,87259.0,87220.0,0.23050729]
[1766168100375,0.0114658,87264.0,87231.0,0.01147]
[1766168100674,0.0114664,87259.0,87239.0,0.00017195]
[1766168100872,0.00368,87258.0,87239.0,0.00017195]
[1766168101074,0.00368,87258.0,87239.0,5e-08]
[1766168101278,0.0114677,87250.0,87239.0,5e-08]
[1766168101578,0.0114682,87246.0,87239.0,5e-08]
[1766168101768,0.00576,87248.0,87239.0,5e-08]
[1766168102271,0.011468,87247.0,87239.0,5e-08]
[1766168102471,0.00576,87248.0,87239.0,5e-08]
[1766168102769,0.011468,87247.0,87209.0,1.46296]
[1766168102974,0.0114682,87246.0,87210.0,0.23033534]
[1766168103174,0.0114682,87246.0,87225.0,0.0114708]
[1766168103471,0.0114685,87244.0,87213.0,0.0114724]
[1766168103676,0.0114685,87244.0,87220.0,0.00017195]
[1766168104071,0.011468,87247.0,87227.0,0.0114705]
[1766168104376,0.0114683,87245.0,87227.0,0.0114705]
[1766168104672,0.00576,87248.0,87223.0,0.0114711]
[1766168105076,0.0114688,87241.0,87223.0,0.0114711]
[1766168105275,0.00192,87240.0,87223.0,0.0114711]
[1766168105477,0.011469,87239.0,87220.0,0.01164345]
[1766168105872,0.00192,87240.0,87222.0,0.0114712]
[1766168106080,0.00192,87240.0,87228.0,0.0114704]
[1766168107273,0.00192,87240.0,87220.0,0.23050729]
[1766168107274,0.00192,87240.0,87225.0,0.0114708]
[1766168107582,0.00192,87240.0,87227.0,0.0114705]
[1766168107778,0.00192,87240.0,87224.0,0.011471]
[1766168107983,0.00192,87240.0,87220.0,0.00017195]
[1766168108181,0.0114691,87239.0,87221.0,0.0114714]
[1766168108581,0.00192,87240.0,87223.0,0.0114711]
[1766168109183,0.00192,87240.0,87225.0,0.0114708]
[1766168109377,0.00192,87240.0,87222.0,0.0114712]
[1766168110086,0.00192,87240.0,87224.0,0.0114709]
[1766168110381,0.0133889,87240.0,87221.0,0.0114714]
[1766168110886,0.23225534,87240.0,87220.0,0.00017195]
[1766168111484,0.0114704,87229.0,87220.0,0.00017195]
[1766168111680,0.0116415,87233.0,87220.0,0.00017195]
[1766168111874,0.0114704,87229.0,87220.0,0.00017195]
[1766168114381,0.0114705,87228.0,87220.0,0.00017195]
[1766168115781,0.0114706,87227.0,87220.0,0.00017195]
[1766168115981,0.00576,87231.0,87220.0,0.00017195]
[1766168117086,0.0114708,87226.0,87220.0,0.00017195]
[1766168117287,0.0114704,87229.0,87220.0,0.00017195]
[1766168118696,0.00576,87231.0,87220.0,0.00017195]
[1766168118981,0.0114702,87230.0,87220.0,0.00017195]
[1766168119188,0.00576,87231.0,87220.0,0.00017195]
[1766168120190,0.0114705,87228.0,87220.0,0.00017195]
[1766168120583,0.0172302,87231.0,87220.0,0.00017195]
[1766168121486,0.0114706,87228.0,87220.0,0.00017195]
[1766168121689,0.0172301,87231.0,87220.0,0.00017195]
[1766168124194,0.0114705,87228.0,87220.0,0.00017195]
[1766168125291,0.0172302,87231.0,87220.0,0.00017195]
[1766168125894,0.00576,87231.0,87220.0,0.00017195]
[1766168126082,0.0114702,87230.0,87220.0,0.00017195]
[1766168127090,0.0114705,87228.0,87220.0,0.00017195]
[1766168127597,0.00576,87231.0,87220.0,0.00017195]
[1766168127598,0.0114707,87227.0,87220.0,0.00017195]
[1766168128990,0.0114703,87230.0,87220.0,0.00017195]
[1766168129298,0.0114705,87228.0,87220.0,0.00017195]
[1766168130087,0.0114704,87229.0,87220.0,0.00017195]
[1766168130288,0.00576,87231.0,87220.0,0.00017195]
[1766168131190,0.0114702,87230.0,87220.0,0.00017195]
[1766168131690,0.00576,87231.0,87220.0,0.00017195]
[1766168132700,0.0114704,87229.0,87220.0,0.00017195]
[1766168133002,0.00576,87231.0,87220.0,0.00017195]
[1766168133301,0.0114702,87230.0,87220.0,0.00017195]
[1766168133691,0.0114703,87229.0,87220.0,0.00017195]
[1766168133902,0.00576,87231.0,87220.0,0.00017195]
[1766168134689,1e-07,87233.0,87220.0,0.23043076]
[1766168135002,0.011466,87263.0,87223.0,0.23025881]
[1766168135202,0.0309289,87262.0,87250.0,0.23025881]
[1766168135399,0.0251689,87261.0,87252.0,0.0114673]
[1766168135595,0.00576,87262.0,87250.0,0.23025881]
[1766168135797,0.00335989,87285.0,87250.0,0.23025881]
[1766168136007,0.0114644,87275.0,87252.0,0.0114672]
[1766168136204,0.00104,87274.0,87254.0,0.011467]
[1766168136594,0.00104,87274.0,87263.0,0.0114658]
[1766168136794,0.00104,87274.0,87260.0,0.23025881]
[1766168137095,0.00104,87274.0,87257.0,0.00576]
[1766168137497,0.0125045,87274.0,87257.0,0.00576]
[1766168137708,0.0125045,87274.0,87260.0,0.23025881]
[1766168138298,0.0125045,87274.0,87257.0,0.00576]
[1766168138694,0.00104,87274.0,87257.0,0.00576]
[1766168138895,0.0114657,87264.0,87252.0,0.00448]
[1766168139102,0.0114657,87264.0,87247.0,0.00017195]
[1766168139103,0.0114661,87262.0,87247.0,0.00017195]
[1766168139296,0.0172256,87265.0,87247.0,0.00017195]
[1766168139706,0.0114659,87263.0,87247.0,0.00017195]
[1766168140305,0.00576,87265.0,87247.0,0.01163985]
[1766168140604,0.0114661,87262.0,87247.0,0.00017195]
[1766168140799,0.00576,87265.0,87247.0,0.00017195]
[1766168141006,0.0114666,87258.0,87247.0,0.00017195]
[1766168141201,0.00576,87265.0,87247.0,0.00017195]
[1766168141410,0.23025881,87260.0,87247.0,5e-08]
[1766168141601,0.0114674,87252.0,87247.0,5e-08]
[1766168142201,0.0114673,87253.0,87247.0,5e-08]
[1766168142806,0.00576,87257.0,87247.0,5e-08]
[1766168143002,0.23025881,87280.0,87247.0,0.23025886]
[1766168143303,0.0114647,87272.0,87255.0,0.0114668]
[1766168143517,0.00576,87271.0,87254.0,0.011467]
[1766168143702,0.0114653,87268.0,87250.0,0.24172621]
[1766168144804,0.0172248,87271.0,87252.0,0.0114672]
[1766168145007,0.0172248,87271.0,87253.0,0.00576]
[1766168145218,0.0114653,87268.0,87253.0,0.00576]
[1766168147007,1.52260236,87297.0,87258.0,0.23025881]
[1766168147206,0.0114635,87281.0,87260.0,0.23025881]
[1766168147408,0.0114638,87280.0,87260.0,0.23025881]
[1766168147615,0.0114633,87283.0,87261.0,0.0114661]
[1766168148005,0.0114636,87281.0,87261.0,0.0114661]
[1766168148814,0.00108,87284.0,87260.0,0.23601881]
[1766168149006,0.02508614,87283.0,87260.0,0.23601881]
[1766168149206,0.0114635,87281.0,87261.0,0.0114661]
[1766168149407,0.0125431,87284.0,87264.0,0.0114657]
[1766168149607,0.02508161,87283.0,87265.0,0.00017195]
[1766168149804,0.0125431,87284.0,87265.0,0.00017195]
[1766168150001,0.0114635,87282.0,87265.0,0.00017195]
[1766168150508,0.011464,87278.0,87265.0,0.00017195]
[1766168150709,0.00576,87277.0,87265.0,0.00017195]
[1766168151410,0.0172241,87277.0,87265.0,0.00017195]
[1766168151611,0.00576,87277.0,87265.0,0.00017195]
[1766168152419,0.0172241,87277.0,87265.0,0.00017195]
[1766168152723,0.00576,87277.0,87265.0,0.00017195]
[1766168152917,0.0114642,87276.0,87265.0,0.00017195]
[1766168153819,0.00576,87277.0,87265.0,0.00017195]
[1766168154211,0.00576,87277.0,87265.0,5e-08]
[1766168154411,0.0114644,87275.0,87265.0,5e-08]
[1766168155013,0.00576,87277.0,87265.0,5e-08]
[1766168155511,0.00576,87279.0,87267.0,0.23025881]
[1766168155914,0.00576,87279.0,87270.0,0.0114648]
[1766168156314,0.00576,87279.0,87267.0,0.23025881]
[1766168157022,0.0001719,87280.0,87267.0,0.24748411]
[1766168157221,0.0001719,87280.0,87270.0,0.23025881]
[1766168158021,0.00384,87291.0,87270.0,0.23025881]
[1766168158321,0.00384,87291.0,87280.0,0.23025881]
[1766168158824,0.011463,87286.0,87280.0,0.23025881]
[1766168159122,0.00384,87291.0,87276.0,0.23025881]
[1766168159318,0.0114626,87288.0,87280.0,0.23025881]
[1766168159513,0.00384,87291.0,87280.0,0.23025881]
[1766168159715,0.0114623,87290.0,87280.0,0.23025881]
[1766168160313,0.00384,87291.0,87280.0,0.23025881]
[1766168160817,0.00576,87292.0,87280.0,0.23025881]
[1766168161017,0.0114628,87287.0,87278.0,0.00576]
[1766168161426,0.0114624,87290.0,87278.0,0.00576]
[1766168161616,0.011459,87316.0,87280.0,0.23025881]
[1766168161816,0.23025881,87310.0,87288.0,0.01163445]
[1766168162026,0.23025881,87310.0,87288.0,0.00017185]
[1766168162721,0.0114603,87306.0,87289.0,0.0114624]
[1766168162923,0.00576,87305.0,87289.0,0.0114624]
[1766168163115,1.46212,87322.0,87288.0,0.00017185]
[1766168163116,0.06016236,87339.0,87290.0,0.23025881]
[1766168163319,0.0114604,87305.0,87290.0,0.23025881]
[1766168163516,0.00352,87304.0,87291.0,0.0114621]
[1766168163916,0.00352,87304.0,87291.0,0.00576]
[1766168164128,0.00352,87304.0,87291.0,0.0172221]
[1766168164327,0.00352,87304.0,87293.0,0.0114619]
[1766168164827,0.00352,87304.0,87291.0,0.00576]
[1766168165330,0.00352,87304.0,87292.0,0.011462]
[1766168165626,0.00352,87304.0,87294.0,0.0114617]
[1766168165821,0.00352,87304.0,87291.0,0.0172222]
[1766168166024,0.00352,87304.0,87293.0,0.0114619]
[1766168166222,0.01146,87308.0,87294.0,0.22985437]
[1766168166418,0.01146,87308.0,87292.0,0.011462]
[1766168167231,0.00576,87309.0,87294.0,0.0114617]
[1766168167621,0.0172199,87309.0,87294.0,0.0114617]
[1766168167818,0.0114586,87319.0,87299.0,0.22985437]
[1766168168028,0.00576,87319.0,87300.0,0.00593185]
[1766168168229,0.00576,87319.0,87300.0,0.23578622]
[1766168168432,0.0114597,87311.0,87300.0,0.23578622]
[1766168169132,0.0114597,87311.0,87300.0,0.00593185]
[1766168169433,0.22985437,87310.0,87260.0,0.0114662]
[1766168169630,0.23561437,87310.0,87284.0,0.0114631]
[1766168169927,0.23561437,87310.0,87285.0,0.00168]
[1766168170129,0.00576,87316.0,87290.0,0.22985437]
[1766168170326,0.01146,87308.0,87290.0,0.23561437]
[1766168170630,0.0114603,87306.0,87290.0,0.23578622]
[1766168171033,0.00544,87307.0,87290.0,0.23578622]
[1766168171234,0.00544,87307.0,87297.0,0.22985437]
[1766168171434,0.0114602,87306.0,87297.0,0.22985437]
[1766168171731,0.00544,87307.0,87290.0,5e-08]
[1766168173229,0.0114612,87299.0,87290.0,5e-08]
[1766168173425,0.00576,87298.0,87280.0,2e-08]
[1766168173622,0.00576,87298.0,87265.0,8.401e-05]
[1766168173828,0.08181759,87331.0,87265.0,8.401e-05]
[1766168173829,0.06016236,87342.0,87283.0,0.12967451]
[1766168174124,0.03098309,87341.0,87300.0,0.22985437]
[1766168174325,0.02522309,87340.0,87320.0,0.22985437]
[1766168174534,0.00576,87346.0,87321.0,0.00576]
[1766168174735,0.00184,87345.0,87321.0,0.00576]
[1766168175032,0.00017175,87342.0,87330.0,0.22985437]
[1766168175223,0.00017175,87345.0,87335.0,0.0114564]
[1766168175428,0.00017175,87349.0,87335.0,0.0114564]
[1766168175734,5e-08,87349.0,87340.0,0.22985437]
[1766168175941,0.05,87379.0,87341.0,0.00576]
[1766168176237,0.03099169,87378.0,87341.0,0.00576]
[1766168176428,0.05,87379.0,87360.0,0.24130737]
[1766168176620,0.00576,87378.0,87360.0,0.24130737]
[1766168176823,0.00576,87378.0,87360.0,0.24147912]
[1766168177025,0.00576,87378.0,87360.0,0.00017175]
[1766168177231,0.05,87379.0,87360.0,0.00017175]
[1766168177928,0.05,87379.0,87361.0,0.0114529]
[1766168178134,0.00576,87384.0,87363.0,0.0114526]
[1766168178432,0.01134033,87410.0,87363.0,0.0114526]
[1766168178433,0.00184,87389.0,87363.0,0.0114526]
[1766168178636,0.00184,87389.0,87367.0,0.00017165]
[1766168178935,0.00184,87389.0,87368.0,0.00556]
[1766168179835,1.46148,87406.0,87368.0,0.00556]
[1766168179836,1.46148,87406.0,87370.0,0.28679582]
[1766168180041,0.00576,87405.0,87370.0,0.28679582]
[1766168180235,0.00576,87405.0,87371.0,0.0114516]
[1766168180633,0.0114432,87436.0,87390.0,0.0114492]
[1766168180944,0.12561547,87439.0,87404.0,0.00017165]
[1766168180945,0.0114448,87424.0,87404.0,0.00017165]
[1766168181121,0.0114454,87419.0,87384.0,0.00576]
[1766168181834,0.00576,87423.0,87384.0,0.0018]
[1766168181835,0.42053421,87420.0,87384.0,0.0018]
[1766168182031,0.42053421,87420.0,87365.0,0.0114524]
[1766168182032,0.0114472,87406.0,87375.0,0.00028]
[1766168182233,0.0114482,87398.0,87382.0,1.65e-06]
[1766168182426,0.00017165,87399.0,87382.0,1.65e-06]
[1766168182427,0.00368,87397.0,87382.0,1.65e-06]
[1766168182627,0.0114485,87396.0,87382.0,1.65e-06]
[1766168182832,0.00368,87397.0,87382.0,1.65e-06]
[1766168184524,0.00368,87397.0,87330.0,0.05968462]
[1766168184525,0.0114512,87375.0,87344.0,1.46088]
[1766168184727,0.00576,87374.0,87343.0,0.0172153]
[1766168184927,1.46088,87384.0,87343.0,0.0172153]
[1766168184928,0.00184,87373.0,87343.0,0.00576]
[1766168185128,0.0114518,87371.0,87343.0,0.00576]
[1766168185630,0.00017165,87366.0,87348.0,0.00017165]
[1766168186744,0.00017165,87366.0,87325.0,0.0114577]
[1766168186929,0.00017165,87366.0,87283.0,0.06157697]
[1766168186930,0.0114541,87353.0,87320.0,0.0114583]
[1766168187127,0.0114545,87350.0,87320.0,0.0114583]
[1766168187335,0.0114551,87346.0,87316.0,1.46076]
[1766168187644,0.0114551,87346.0,87315.0,0.06327387]
[1766168187645,0.0114565,87335.0,87315.0,0.06327387]
[1766168187936,0.00516,87334.0,87309.0,0.00576]
[1766168188239,0.00368,87333.0,87314.0,0.011459]
[1766168188439,0.00368,87333.0,87318.0,0.0114586]
[1766168188640,0.00368,87333.0,87317.0,0.00017176]
[1766168194547,0.0114573,87329.0,87317.0,1.76e-06]
[1766168194733,0.0151368,87333.0,87317.0,1.76e-06]
[1766168195039,0.00368,87333.0,87317.0,1.76e-06]
[1766168195431,0.00368,87333.0,87317.0,0.01146046]
[1766168195831,0.00368,87333.0,87324.0,0.0114578]
[1766168196443,0.00014582,87345.0,87336.0,0.0114563]
[1766168196741,0.00356,87344.0,87335.0,0.0114563]
[1766168197148,0.00356,87344.0,87331.0,0.0114569]
[1766168197849,0.00356,87344.0,87323.0,0.0114579]
[1766168198446,0.011456,87339.0,87319.0,0.0114584]
[1766168199045,0.00356,87344.0,87317.0,1.76e-06]
[1766168199351,0.0114563,87336.0,87317.0,1.76e-06]
[1766168199641,0.0114554,87343.0,87317.0,1.76e-06]
[1766168200041,0.0114557,87341.0,87321.0,0.0114581]
[1766168200242,0.0114557,87341.0,87317.0,1.76e-06]
[1766168200243,0.00492,87342.0,87318.0,0.0114586]
[1766168200448,0.0114562,87337.0,87318.0,0.0114586]
[1766168200647,0.0114557,87341.0,87318.0,0.0114586]
[1766168201048,0.0114557,87341.0,87321.0,0.0114582]
[1766168201448,0.00492,87342.0,87317.0,1.76e-06]
[1766168201639,0.0114565,87335.0,87317.0,1.76e-06]
[1766168201841,0.0114574,87328.0,87317.0,1.76e-06]
[1766168202241,0.00532,87331.0,87317.0,1.76e-06]
[1766168202948,0.00532,87331.0,87288.0,1.46096]
[1766168203147,0.00576,87330.0,87290.0,0.42053421]
[1766168203444,0.00576,87330.0,87291.0,0.12176287]
[1766168203637,0.0114581,87323.0,87301.0,0.0114608]
[1766168203836,0.00017176,87321.0,87303.0,0.00017176]
[1766168204035,0.00010979,87320.0,87303.0,0.00017176]
[1766168204851,0.00010979,87320.0,87303.0,0.01163236]
[1766168205152,0.00010979,87320.0,87303.0,0.00017176]
[1766168205546,5e-08,87321.0,87311.0,0.0114594]
[1766168206248,5e-08,87321.0,87313.0,0.0114592]
[1766168206444,6.483e-05,87320.0,87303.0,0.00017176]
[1766168207649,6.483e-05,87320.0,87304.0,0.0114605]
[1766168207839,6.483e-05,87320.0,87303.0,0.00017176]
[1766168208041,6.483e-05,87320.0,87309.0,0.0114597]
[1766168208238,6.483e-05,87320.0,87312.0,0.0114594]
[1766168208442,4.83e-06,87320.0,87312.0,0.0114594]
[1766168208653,4.83e-06,87320.0,87303.0,0.00017176]
[1766168208950,0.011459,87316.0,87303.0,0.00017176]
[1766168209250,0.0004,87315.0,87303.0,0.00017176]
[1766168209647,0.0118591,87315.0,87303.0,0.00017176]
[1766168210238,0.0004,87315.0,87279.0,1.46112]
[1766168210439,0.0114602,87307.0,87287.0,0.01155327]
[1766168210847,0.0114605,87305.0,87287.0,0.01155327]
[1766168211052,0.0160605,87305.0,87287.0,0.01155327]
[1766168211254,0.0046,87305.0,87289.0,0.0114624]
[1766168211640,0.0046,87305.0,87295.0,0.0114616]
[1766168213458,0.0046,87305.0,87292.0,0.011462]
[1766168213658,0.0046,87305.0,87288.0,0.00017176]
[1766168214955,0.0046,87305.0,87289.0,0.0114624]
[1766168215453,0.0114605,87304.0,87288.0,0.00017176]
[1766168215954,0.0114614,87297.0,87288.0,0.00017176]
[1766168216160,0.0114614,87297.0,87275.0,0.04070103]
[1766168216161,0.00017176,87301.0,87275.0,0.0114642]
[1766168216460,0.0114622,87291.0,87273.0,0.00576]
[1766168216952,0.0114619,87294.0,87274.0,0.0114644]
[1766168217151,9.55e-05,87293.0,87276.0,0.0114642]
[1766168218460,9.55e-05,87293.0,87275.0,0.00011359]
[1766168218659,0.0114624,87290.0,87275.0,0.00011359]
[1766168218959,0.0115575,87293.0,87275.0,0.00011359]
[1766168219148,0.0114623,87291.0,87275.0,0.00011359]
[1766168220150,9.55e-05,87293.0,87275.0,0.01157779]
[1766168220351,9.55e-05,87293.0,87275.0,0.00011359]
[1766168220659,9.55e-05,87293.0,87278.0,0.0114638]
[1766168221050,9.55e-05,87293.0,87275.0,0.00011359]
[1766168221256,9.55e-05,87293.0,87278.0,0.0114638]
[1766168222263,9.55e-05,87293.0,87281.0,0.0114635]
[1766168222445,9.55e-05,87293.0,87275.0,0.00011359]
[1766168222849,9.55e-05,87293.0,87232.0,0.10253562]
[1766168222850,0.42053421,87290.0,87251.0,0.0114674]
[1766168223151,0.0114653,87268.0,87248.0,0.0114677]
[1766168223354,0.0114655,87266.0,87248.0,0.0114677]
[1766168223551,0.0037755,87267.0,87245.0,0.0114682]
[1766168223748,0.015241,87267.0,87245.0,0.0114682]
[1766168223950,0.00017186,87266.0,87249.0,0.0114676]
[1766168224251,0.01163746,87266.0,87245.0,0.0114681]
[1766168224453,0.01163746,87266.0,87247.0,0.01161351]
[1766168224654,0.01163746,87266.0,87249.0,0.0114676]
[1766168224655,0.00017186,87266.0,87249.0,0.0114676]
[1766168225660,0.00017186,87266.0,87251.0,0.0114673]
[1766168225859,0.00017186,87266.0,87247.0,0.00014561]
[1766168225860,1.46164,87298.0,87250.0,0.55344837]
[1766168226059,0.00364,87297.0,87268.0,0.0114651]
[1766168226256,0.0114639,87279.0,87259.0,0.0114664]
[1766168226853,0.00017186,87278.0,87260.0,0.00017186]
[1766168227050,0.011464,87277.0,87260.0,0.00017186]
[1766168227658,0.00017186,87278.0,87260.0,0.00017186]
[1766168227863,0.011465,87270.0,87260.0,0.00017186]
[1766168228164,0.00576,87271.0,87260.0,0.00017186]
[1766168228966,0.00017186,87278.0,87261.0,0.0114661]
[1766168229263,0.00017186,87278.0,87262.0,0.011466]
[1766168229453,0.00017186,87278.0,87260.0,0.00017186]
[1766168230766,0.00017186,87278.0,87247.0,0.00014561]
[1766168231260,0.0114658,87264.0,87247.0,0.00014561]
[1766168231459,0.0114658,87264.0,87247.0,0.01161351]
[1766168231859,0.0123454,87267.0,87247.0,0.01161351]
[1766168232462,0.0114657,87265.0,87247.0,0.01161351]
[1766168232963,0.0114659,87263.0,87247.0,0.00014561]
[1766168233364,0.00088,87267.0,87247.0,0.00014561]
[1766168233756,0.0114659,87263.0,87247.0,0.00014561]
[1766168235672,0.0114662,87261.0,87247.0,0.00014561]
[1766168235868,0.0114657,87265.0,87222.0,0.04070103]
[1766168236069,0.00088,87267.0,87223.0,0.00576]
[1766168236070,0.01163926,87252.0,87223.0,0.00576]
[1766168236271,0.00576,87251.0,87233.0,0.0114697]
[1766168236974,0.0114679,87248.0,87228.0,0.0114704]
[1766168237466,0.0114696,87235.0,87214.0,0.0114723]
[1766168237672,0.42213915,87250.0,87212.0,0.0114725]
[1766168237673,0.00017197,87233.0,87212.0,0.0114725]
[1766168237857,0.00564,87234.0,87230.0,0.0114702]
[1766168237858,7e-08,87234.0,87230.0,0.0114702]
[1766168238057,0.0114677,87249.0,87230.0,0.0114702]
[1766168238257,0.00014137,87250.0,87211.0,0.00552]
[1766168238258,0.00576,87248.0,87220.0,0.0114715]
[1766168238465,0.00576,87248.0,87211.0,0.00552]
[1766168238663,0.0114695,87235.0,87215.0,0.0114721]
[1766168238869,0.00017197,87234.0,87216.0,0.00017197]
[1766168239072,0.0114702,87231.0,87216.0,0.00017197]
[1766168239572,0.00017197,87234.0,87216.0,0.00017197]
[1766168240070,0.00017197,87234.0,87224.0,0.0114709]
[1766168240666,0.00017197,87234.0,87216.0,0.00017197]
[1766168241072,0.00017197,87234.0,87217.0,0.0114719]
[1766168241770,0.00017197,87234.0,87216.0,0.00017197]
[1766168243269,0.0114702,87230.0,87216.0,0.00017197]
[1766168243471,0.00017197,87234.0,87216.0,0.00017197]
[1766168243678,0.0114706,87228.0,87216.0,0.00017197]
[1766168243877,0.00576,87227.0,87204.0,0.00011535]
[1766168244067,0.0172307,87227.0,87207.0,0.0114731]
[1766168244267,0.00576,87227.0,87210.0,0.0114728]
[1766168244973,0.0114708,87226.0,87206.0,0.0114732]
[1766168245176,0.00014297,87225.0,87206.0,0.0114732]
[1766168245372,0.00014297,87225.0,87209.0,0.0114729]
[1766168245573,0.00014297,87225.0,87204.0,0.00011535]
[1766168246078,0.00014297,87225.0,87211.0,0.0114726]
[1766168246878,0.00014297,87225.0,87206.0,0.0114732]
[1766168247069,0.00014297,87225.0,87208.0,0.011473]
[1766168247377,0.00014297,87225.0,87204.0,0.00011535]
[1766168247973,0.011471,87224.0,87204.0,0.01158885]
[1766168248178,0.00014297,87225.0,87206.0,0.0114732]
[1766168248677,0.00014297,87225.0,87208.0,0.011473]
[1766168249461,0.01161397,87225.0,87205.0,0.0114735]
[1766168249667,0.0114713,87222.0,87205.0,0.0114735]
[1766168250068,0.00014297,87225.0,87204.0,0.00011535]
[1766168250069,0.0114717,87219.0,87204.0,0.00011535]
[1766168250267,0.0114713,87222.0,87204.0,0.00011535]
[1766168250977,0.00476,87221.0,87204.0,0.00011535]
[1766168251471,0.00014297,87225.0,87214.0,0.0114723]
[1766168251778,7e-08,87226.0,87221.0,0.0114714]
[1766168251976,7e-08,87226.0,87204.0,0.00011535]
[1766168252278,7e-08,87226.0,87215.0,0.0114721]
[1766168257480,7e-08,87226.0,87217.0,0.0114719]
[1766168257987,7e-08,87226.0,87214.0,0.0114723]
[1766168258180,0.0114709,87225.0,87204.0,0.00011535]
[1766168258386,0.0114712,87223.0,87207.0,0.0114732]
[1766168258588,0.011471,87224.0,87204.0,0.00011535]
[1766168258785,0.011471,87224.0,87208.0,0.0114731]
[1766168259287,7e-08,87226.0,87204.0,0.00011535]
[1766168259586,0.0114712,87223.0,87207.0,0.0114731]
[1766168259788,7e-08,87226.0,87207.0,0.0114731]
[1766168260184,0.0114711,87224.0,87206.0,0.0114733]
[1766168260580,0.0114711,87224.0,87208.0,0.0114731]
[1766168261975,7e-08,87226.0,87204.0,0.00011535]
[1766168262179,0.0114677,87249.0,87230.0,0.0114702]
[1766168262379,0.00576,87248.0,87219.0,0.004]
[1766168262591,0.00576,87247.0,87219.0,0.004]
[1766168262892,0.0114688,87241.0,87221.0,0.0114713]
[1766168263085,0.011469,87240.0,87221.0,0.0114713]
[1766168263286,0.00017197,87239.0,87222.0,7e-08]
[1766168263595,0.0114728,87210.0,87204.0,5e-08]
[1766168263788,0.0026,87216.0,87204.0,5e-08]
[1766168264380,0.0114734,87206.0,87204.0,5e-08]
[1766168264588,0.00011794,87205.0,87204.0,5e-08]
[1766168265503,0.00587794,87205.0,87179.0,0.05]
[1766168265697,0.00017197,87201.0,87179.0,0.05]
[1766168265892,0.0114748,87195.0,87179.0,0.05]
[1766168266296,0.0172348,87195.0,87179.0,0.05]
[1766168266605,0.0172348,87195.0,87179.0,0.0614768]
[1766168266803,0.00576,87195.0,87179.0,0.0614768]
[1766168269504,0.00576,87195.0,87182.0,0.0114764]
[1766168269707,0.00456,87199.0,87184.0,0.0114762]
[1766168269898,0.0114752,87193.0,87180.0,0.00576]
[1766168270099,0.00456,87199.0,87179.0,7e-08]
[1766168270294,0.00456,87199.0,87155.0,0.04101691]
[1766168270295,0.0114769,87179.0,87162.0,0.0114791]
[1766168270498,8.253e-05,87178.0,87163.0,0.00576]
[1766168270706,0.0114775,87175.0,87156.0,0.0114799]
[1766168270894,8.253e-05,87178.0,87146.0,1.463]
[1766168271098,8.253e-05,87178.0,87157.0,0.00256]
[1766168271504,0.0114784,87168.0,87157.0,0.00256]
[1766168272193,0.0114784,87168.0,87147.0,0.0114811]
[1766168272399,0.011479,87163.0,87143.0,0.0114815]
[1766168272594,0.00576,87162.0,87138.0,0.0114823]
[1766168272799,0.0114796,87159.0,87138.0,0.0114823]
[1766168273004,0.00017208,87157.0,87140.0,0.011482]
[1766168273215,0.00017208,87157.0,87144.0,0.0114815]
[1766168274111,0.00017208,87157.0,87140.0,0.0114819]
[1766168274313,0.0114844,87123.0,87112.0,0.00014292]
[1766168274619,0.0114857,87113.0,87070.0,0.28791482]
[1766168274803,0.00017218,87100.0,87071.0,0.00576]
[1766168275004,0.00017218,87100.0,87081.0,0.11474403]
[1766168275209,0.00017218,87100.0,87082.0,0.00576]
[1766168275406,0.00011902,87099.0,87082.0,0.00576]
[1766168276211,0.00011902,87099.0,87083.0,0.00576]
[1766168276414,0.00011902,87099.0,87084.0,0.00576]
[1766168277600,0.00011902,87099.0,87075.0,0.0114905]
[1766168277803,0.00011902,87099.0,87076.0,1.46944]
[1766168278002,0.00011902,87099.0,87076.0,1.71489238]
[1766168278213,0.00011902,87099.0,87077.0,0.0114903]
[1766168278411,0.00011902,87099.0,87077.0,1.4809703]
[1766168279209,0.00568,87123.0,87080.0,0.28791482]
[1766168279709,0.00568,87123.0,87093.0,0.0114882]
[1766168280015,0.011485,87118.0,87094.0,0.00576]
[1766168280215,0.00017218,87115.0,87097.0,0.00017218]
[1766168281412,1.51e-06,87117.0,87100.0,0.28791482]
[1766168281601,1.51e-06,87117.0,87101.0,0.00576]
[1766168282217,1.51e-06,87117.0,87105.0,0.0114866]
[1766168282516,0.0114804,87153.0,87110.0,0.011486]
[1766168282712,0.0114823,87139.0,87112.0,0.0114857]
[1766168282914,0.0114811,87147.0,87111.0,0.00576]
[1766168283106,0.0114815,87145.0,87123.0,0.0114843]
[1766168283306,0.0058,87152.0,87125.0,0.011484]
[1766168283307,0.00014354,87144.0,87125.0,0.011484]
[1766168283517,0.00014354,87144.0,87124.0,0.0008]
[1766168283813,0.00017218,87143.0,87126.0,0.00017218]
[1766168284214,0.0114827,87136.0,87126.0,0.00017218]
[1766168284415,0.00017218,87143.0,87126.0,0.00017218]
[1766168284416,0.0114821,87140.0,87126.0,0.00017218]
[1766168285319,0.0114825,87137.0,87126.0,0.00017218]
[1766168285816,0.011482,87141.0,87126.0,0.00017218]
[1766168287123,0.00017218,87143.0,87126.0,0.00017218]
[1766168287323,0.0114826,87136.0,87126.0,0.00017218]